bitfinex-derivatives/quotes_ETHF0:USTF0_20240925
["timestamp","ask_amount","ask_price","bid_price","bid_amount"]
[1727293139114,1.78723,2582.6,2582.5,0.38723]
[1727293139305,1.78723,2582.6,2582.5,1.40244613]
[1727293139501,1.78723,2582.6,2582.5,0.38723]
[1727293140208,0.38724,2582.5,2582.4,1.01521613]
[1727293140420,1.73954,2582.5,2582.4,1.01573567]
[1727293140621,7.8437,2582.5,2582.3,1.01580696]
[1727293140824,3.15479,2582.4,2582.3,1.01580696]
[1727293141022,0.96821,2582.2,2582.0,1.01580696]
[1727293141322,1.1512,2582.1,2582.0,1.01580696]
[1727293141527,5.32725,2582.1,2582.0,1.01580696]
[1727293141822,5.32725,2582.1,2581.7,1.01580696]
[1727293141823,0.38734,2581.8,2581.7,1.01580696]
[1727293142032,0.38736,2581.7,2581.6,1.01580696]
[1727293142236,0.38736,2581.7,2581.5,2.53931189]
[1727293142237,0.38737,2581.6,2581.5,2.53931189]
[1727293142524,0.38739,2581.5,2581.4,1.77854957]
[1727293142717,2.56478,2581.6,2581.4,3.55552235]
[1727293142919,2.56478,2581.6,2581.5,0.38739]
[1727293142920,1.7842,2581.6,2581.5,0.38739]
[1727293143117,0.4063,2581.7,2581.6,0.38737]
[1727293143320,0.4063,2581.7,2581.6,1.79040162]
[1727293143516,1.4,2581.8,2581.7,0.38736]
[1727293144123,1.78734,2581.8,2581.6,0.77456]
[1727293144432,0.38734,2581.8,2581.6,0.77456]
[1727293144628,0.77984,2581.9,2581.6,0.77456]
[1727293145528,3.4132,2582.0,2581.8,0.38734]
[1727293145529,0.38732,2582.0,2581.8,0.38734]
[1727293145726,0.7988,2582.1,2581.9,0.76872]
[1727293145926,0.38731,2582.0,2581.9,0.3814]
[1727293146623,3.40731,2582.0,2581.9,0.3814]
[1727293146822,3.02,2582.0,2581.6,3.98236]
[1727293147024,3.02,2581.8,2581.7,0.38736]
[1727293147419,3.40735,2581.8,2581.6,3.98236]
[1727293147614,3.40735,2581.8,2581.6,0.77456]
[1727293147914,3.02,2581.8,2581.7,0.38736]
[1727293148124,3.02,2581.9,2581.7,0.38736]
[1727293148314,3.02,2581.9,2581.8,0.38734]
[1727293148524,3.02,2582.1,2581.9,0.38731]
[1727293148730,3.40731,2582.1,2582.0,0.7983]
[1727293149027,3.02,2582.1,2582.0,1.18561]
[1727293149418,3.02,2582.1,2582.0,0.7983]
[1727293149419,3.4073,2582.1,2582.0,0.7983]
[1727293149915,3.02,2582.1,2582.0,1.18561]
[1727293150328,3.4073,2582.1,2582.0,0.7983]
[1727293151328,3.4073,2582.1,2582.0,1.18561]
[1727293151523,3.4073,2582.1,2582.0,0.7983]
[1727293152126,3.4073,2582.1,2582.0,0.4034]
[1727293152432,0.96836,2581.8,2581.5,1.01583162]
[1727293152636,0.96836,2581.8,2581.4,1.52350493]
[1727293152637,0.38739,2581.5,2581.4,1.40653162]
[1727293152928,3.79526,2581.7,2581.6,0.38737]
[1727293153130,0.3879,2581.7,2581.6,0.38737]
[1727293153634,0.3879,2581.7,2581.6,0.77907]
[1727293154130,0.77526,2581.7,2581.6,0.77907]
[1727293155433,0.77526,2581.7,2581.6,0.3917]
[1727293156120,0.77526,2581.7,2581.4,1.40653162]
[1727293156121,3.4079,2581.7,2581.4,1.79392162]
[1727293156333,0.38739,2581.5,2581.4,0.77809]
[1727293157026,0.4043,2581.6,2581.5,0.38739]
[1727293157027,0.79168,2581.6,2581.5,0.38739]
[1727293161728,0.4043,2581.6,2581.5,0.38739]
[1727293162233,0.79167,2581.6,2581.5,0.38739]
[1727293162921,0.4043,2581.6,2581.5,0.38739]
[1727293163327,0.38735,2581.8,2581.4,1.3592]
[1727293163533,0.38735,2581.8,2581.7,0.38736]
[1727293163941,0.38733,2581.9,2581.8,0.38734]
[1727293164232,4.34972,2582.0,2581.9,0.38733]
[1727293164627,4.34972,2582.0,2581.8,0.38734]
[1727293164628,3.9624,2582.0,2581.8,0.38734]
[1727293164833,4.34973,2582.0,2581.9,0.38733]
[1727293166129,3.02,2582.1,2582.0,0.3873]
[1727293166130,0.3873,2582.1,2582.0,0.3873]
[1727293166836,0.3873,2582.1,2582.0,0.38731]
[1727293167131,0.451,2582.7,2582.1,0.96825]
[1727293167325,3.8005,2582.8,2582.3,1.01401528]
[1727293167524,0.38724,2582.6,2582.4,0.3827]
[1727293167831,0.38724,2582.6,2582.5,2.7]
[1727293168030,3.02,2582.7,2582.2,4.59641528]
[1727293168230,0.38728,2582.2,2582.1,1.75571528]
[1727293168434,0.38728,2582.2,2582.1,0.3715]
[1727293168627,4.2627,2582.2,2581.9,1.01401528]
[1727293168821,0.38731,2582.0,2581.8,1.7871]
[1727293169029,0.38731,2582.0,2581.8,0.7461]
[1727293169632,0.38731,2582.0,2581.8,2.14745528]
[1727293169831,0.38733,2581.9,2581.8,0.3715]
[1727293170132,0.38733,2581.9,2581.8,0.75884]
[1727293170133,0.4031,2581.9,2581.8,0.75884]
[1727293170631,0.79043,2581.9,2581.8,0.3715]
[1727293173034,0.79043,2581.9,2581.8,0.75884]
[1727293173538,0.79043,2581.9,2581.8,0.3715]
[1727293173737,0.4031,2581.9,2581.8,0.75884]
[1727293177036,0.79043,2581.9,2581.8,0.75884]
[1727293177941,0.4031,2581.9,2581.8,0.75884]
[1727293178147,0.3899,2582.2,2581.8,0.3715]
[1727293178347,0.7888,2582.2,2582.0,0.38731]
[1727293178944,0.38732,2582.0,2581.8,1.16623]
[1727293179342,1.75702,2582.2,2581.8,1.16623]
[1727293179343,0.38731,2582.1,2581.9,0.38733]
[1727293180243,1.75702,2582.2,2581.8,1.16624]
[1727293180244,0.38733,2581.9,2581.8,1.16624]
[1727293180439,1.75702,2582.2,2581.8,1.16624]
[1727293180440,0.38732,2582.0,2581.8,1.16624]
[1727293181038,0.38732,2582.0,2581.8,0.7789]
[1727293181246,0.38732,2582.0,2581.8,1.16623]
[1727293182143,3.40731,2582.1,2581.9,0.38733]
[1727293182647,0.38732,2582.0,2581.8,1.16623]
[1727293182847,0.38732,2582.0,2581.9,0.38733]
[1727293183345,0.38732,2582.0,2581.8,1.16623]
[1727293183741,0.38732,2582.0,2581.7,1.38421528]
[1727293183742,3.02,2582.1,2581.7,1.01401528]
[1727293183945,0.38736,2581.7,2581.6,1.41841528]
[1727293184738,0.38736,2581.7,2581.6,1.80578528]
[1727293184949,0.38736,2581.7,2581.6,1.41841528]
[1727293185334,0.38736,2581.7,2581.6,2.80705465]
[1727293185543,0.38736,2581.7,2581.6,0.79177]
[1727293188643,0.7767,2581.8,2581.6,0.79177]
[1727293188847,1.16405,2581.8,2581.7,0.38736]
[1727293190051,0.38734,2581.9,2581.8,0.38734]
[1727293190650,1.1332,2582.0,2581.9,0.38733]
[1727293190651,0.38732,2582.0,2581.9,0.38733]
[1727293191052,0.38734,2581.9,2581.8,0.38733]
[1727293191947,0.38732,2582.0,2581.9,0.38732]
[1727293192149,0.38734,2581.9,2581.8,0.38733]
[1727293192746,0.38732,2582.0,2581.9,0.38732]
[1727293193656,3.02,2582.1,2581.8,0.3755]
[1727293194048,0.38732,2582.0,2581.9,0.38732]
[1727293195247,0.38733,2581.9,2581.8,0.76284]
[1727293195844,0.38732,2582.0,2581.9,0.38732]
[1727293197452,0.38733,2581.9,2581.8,0.76283]
[1727293197857,0.38732,2582.0,2581.9,0.38732]
[1727293199557,0.38733,2581.9,2581.8,0.76284]
[1727293200351,3.40733,2581.9,2581.8,0.3755]
[1727293200760,3.40733,2581.9,2581.7,0.38735]
[1727293200761,0.38734,2581.8,2581.7,0.38735]
[1727293200957,1.14964,2581.8,2581.7,1.40136528]
[1727293201460,1.14964,2581.8,2581.7,1.01401528]
[1727293201652,0.38736,2581.7,2581.6,5.01358528]
[1727293201853,0.38736,2581.7,2581.6,4.62621528]
[1727293202159,1.1507,2581.8,2581.6,4.62621528]
[1727293202355,3.02,2582.1,2581.6,4.62621528]
[1727293202560,0.38733,2582.0,2581.7,1.01401528]
[1727293202862,0.38733,2582.0,2581.9,0.38732]
[1727293203961,0.38733,2581.9,2581.8,0.78024]
[1727293204165,0.38732,2582.0,2581.8,0.78024]
[1727293204348,0.38732,2582.0,2581.9,0.38733]
[1727293205354,0.38732,2582.0,2581.9,0.38732]
[1727293205963,4.1815,2582.1,2582.0,0.38731]
[1727293206166,3.7942,2582.1,2581.9,0.78692]
[1727293206465,0.38731,2582.0,2581.9,0.78692]
[1727293207253,0.38731,2582.0,2581.9,0.78693]
[1727293207767,0.38731,2582.0,2581.9,0.3996]
[1727293208469,1.78731,2582.0,2581.9,0.3996]
[1727293209259,1.78731,2582.0,2581.9,0.78693]
[1727293209467,1.78731,2582.0,2581.9,0.3996]
[1727293213771,1.78731,2582.0,2581.9,0.78693]
[1727293213969,1.78731,2582.0,2581.9,0.3996]
[1727293215269,0.38733,2581.9,2581.8,0.78023]
[1727293215857,0.38733,2581.9,2581.8,3.18525968]
[1727293216074,2.17542,2582.0,2581.9,0.38733]
[1727293216267,2.17542,2582.0,2581.8,1.79424528]
[1727293216466,0.38733,2581.9,2581.8,1.79424528]
[1727293216666,0.38733,2581.9,2581.8,3.18526008]
[1727293216871,0.38733,2581.9,2581.8,2.1712448]
[1727293217172,0.38733,2581.9,2581.8,3.18818507]
[1727293218070,8.43625,2581.9,2581.8,2.40795074]
[1727293218273,8.43625,2581.9,2581.7,1.52102292]
[1727293218274,0.96844,2581.6,2581.3,1.52102292]
[1727293218567,0.38743,2581.2,2581.1,1.91302292]
[1727293218765,1.78743,2581.2,2581.1,1.91302292]
[1727293218960,1.4,2581.2,2581.1,1.91302292]
[1727293219268,1.4,2581.2,2581.1,2.30047292]
[1727293219569,1.78743,2581.2,2581.1,0.77945]
[1727293219871,1.78743,2581.2,2581.1,0.392]
[1727293220066,1.78743,2581.2,2581.1,0.7899]
[1727293222672,1.78743,2581.2,2581.1,1.17735]
[1727293222975,1.78743,2581.2,2581.1,0.7899]
[1727293223682,1.78743,2581.2,2581.1,1.17735]
[1727293224869,1.4,2581.2,2581.1,1.17735]
[1727293225064,1.78743,2581.2,2581.1,1.17735]
[1727293225969,1.4,2581.2,2581.1,1.17735]
[1727293226471,1.78743,2581.2,2581.1,1.17735]
[1727293227578,1.78743,2581.2,2581.1,0.7899]
[1727293228377,1.78743,2581.2,2581.1,1.17735]
[1727293228978,1.4,2581.3,2581.1,0.7899]
[1727293229167,1.4,2581.4,2581.3,0.38742]
[1727293229374,1.78738,2581.6,2581.2,4.9804]
[1727293229879,1.78738,2581.6,2581.5,0.38739]
[1727293230370,0.76536,2581.7,2581.5,0.38739]
[1727293230571,0.3911,2581.8,2581.7,0.38736]
[1727293230971,1.778,2582.1,2581.7,3.8736]
[1727293231172,2.1653,2582.1,2581.9,0.38731]
[1727293231373,0.7653,2582.1,2582.0,0.3676]
[1727293231681,1.4,2582.1,2582.0,0.75491]
[1727293231979,1.4,2582.1,2581.0,0.09]
[1727293231980,1.35607,2581.1,2581.0,0.09]
[1727293232184,0.38748,2580.9,2580.8,0.3959]
[1727293232380,2.75618,2580.9,2580.8,0.3959]
[1727293232882,1.78748,2580.9,2580.8,0.3959]
[1727293234483,1.4,2580.9,2580.8,0.3959]
[1727293234679,3.02,2580.9,2580.8,0.3959]
[1727293234880,3.40748,2580.9,2580.8,0.3959]
[1727293235582,0.38753,2580.6,2580.4,3.2078]
[1727293235785,3.02,2580.6,2580.4,3.59535]
[1727293236176,3.40753,2580.6,2580.4,3.2078]
[1727293236788,3.02,2580.6,2580.4,3.59535]
[1727293236979,3.40752,2580.6,2580.4,3.59535]
[1727293237376,0.38754,2580.5,2580.4,3.2078]
[1727293239391,0.38757,2580.3,2580.2,0.385]
[1727293239587,3.02,2580.3,2580.2,0.385]
[1727293239787,3.40757,2580.3,2580.2,0.385]
[1727293239977,3.02,2580.3,2580.2,0.385]
[1727293240694,3.02,2580.3,2580.2,0.77258]
[1727293240881,3.02,2580.4,2580.3,0.38757]
[1727293241991,0.38755,2580.4,2580.2,0.77258]
[1727293242292,3.40753,2580.6,2580.4,0.38755]
[1727293242494,0.38753,2580.6,2580.4,0.38755]
[1727293242686,0.38753,2580.6,2580.5,2.7]
[1727293243188,0.38753,2580.6,2580.4,0.38755]
[1727293243584,0.38753,2580.6,2580.4,3.08755]
[1727293244291,3.02,2580.7,2580.4,2.7]
[1727293244484,3.40754,2580.5,2580.4,2.7]
[1727293245984,7.28274,2580.5,2580.4,2.7]
[1727293246287,0.38758,2580.2,2580.1,3.2078]
[1727293246479,3.40758,2580.2,2580.1,3.2078]
[1727293246882,3.40758,2580.2,2580.1,3.5954]
[1727293246883,3.02,2580.2,2580.1,3.5954]
[1727293247279,3.02,2580.2,2580.0,0.7779]
[1727293247483,3.40758,2580.2,2580.0,0.7779]
[1727293247887,3.02,2580.2,2580.1,0.3876]
[1727293248081,3.40758,2580.2,2580.0,0.7779]
[1727293248387,3.02,2580.2,2580.1,0.3876]
[1727293248588,3.40758,2580.2,2580.0,0.3903]
[1727293248787,3.02,2580.2,2580.0,0.3903]
[1727293248989,3.40759,2580.2,2580.0,0.3903]
[1727293249183,3.40759,2580.2,2580.0,0.7779]
[1727293250692,3.40759,2580.2,2580.0,0.77791]
[1727293252594,3.02,2580.2,2580.1,0.3876]
[1727293253395,3.02,2580.2,2580.0,0.3903]
[1727293253396,0.3876,2580.1,2580.0,0.3903]
[1727293253700,0.3876,2580.1,2580.0,0.7779]
[1727293253887,3.40759,2580.2,2580.0,0.7779]
[1727293254397,3.40759,2580.2,2579.7,0.4061]
[1727293254398,0.38764,2579.8,2579.7,0.4061]
[1727293254600,3.40764,2579.8,2579.7,0.8076]
[1727293254789,3.40764,2579.8,2579.7,4.6836]
[1727293255592,3.02,2579.8,2579.7,4.6836]
[1727293255898,3.40764,2579.8,2579.7,5.07126]
[1727293256095,3.02,2579.8,2579.7,1.19526]
[1727293256286,3.40764,2579.8,2579.7,1.19526]
[1727293256603,3.40764,2579.8,2579.7,0.8076]
[1727293257198,3.02,2579.8,2579.7,1.19526]
[1727293259602,3.02,2579.8,2579.7,5.07126]
[1727293260605,3.02,2579.8,2579.7,1.19526]
[1727293260897,3.40764,2579.8,2579.7,1.19526]
[1727293261398,3.02,2579.8,2579.7,1.19526]
[1727293262100,3.02,2579.8,2579.7,3.89526]
[1727293262395,3.02,2579.9,2579.8,0.38764]
[1727293263593,3.02,2579.9,2579.1,7.3938]
[1727293263594,10.1038,2579.9,2579.1,7.3938]
[1727293263902,0.38772,2579.3,2579.2,0.4068]
[1727293264293,3.02,2579.3,2579.2,0.4068]
[1727293264496,0.3719,2579.8,2579.6,0.38767]
[1727293264701,0.4051,2579.8,2579.6,0.38767]
[1727293264908,0.4051,2579.8,2579.7,0.79446]
[1727293265306,3.02,2580.0,2579.7,0.79446]
[1727293265307,3.40761,2580.0,2579.7,0.79446]
[1727293265604,3.02,2580.0,2579.8,0.38764]
[1727293265994,3.2078,2580.5,2579.8,7.2618]
[1727293266299,3.6129,2580.5,2580.2,0.38758]
[1727293266496,3.6129,2580.5,2580.3,0.3826]
[1727293266700,3.6129,2580.5,2580.3,0.77016]
[1727293267202,4.00044,2580.5,2580.3,0.3826]
[1727293267396,3.6129,2580.5,2580.3,0.3826]
[1727293268205,3.6129,2580.5,2580.3,0.7707]
[1727293269097,3.02,2580.4,2580.3,0.3826]
[1727293272004,3.40755,2580.4,2580.3,0.3826]
[1727293273010,3.02,2580.4,2580.3,0.3826]
[1727293273605,3.40755,2580.4,2580.3,0.3826]
[1727293275505,3.40755,2580.4,2579.9,0.3881]
[1727293275506,0.38758,2580.2,2579.9,0.3881]
[1727293275707,0.38761,2580.0,2579.9,4.2579]
[1727293275899,0.38767,2579.6,2579.5,0.3734]
[1727293276104,0.38767,2579.6,2579.4,1.4149]
[1727293276105,0.38769,2579.5,2579.4,1.4149]
[1727293276304,3.59549,2579.5,2579.4,1.4149]
[1727293276509,0.38769,2579.5,2579.4,0.3819]
[1727293276710,7.197,2579.6,2579.2,1.033]
[1727293276912,0.38771,2579.4,2579.2,1.4149]
[1727293277606,0.38772,2579.3,2579.2,0.3819]
[1727293277806,0.38772,2579.3,2579.2,1.4159]
[1727293278506,0.76852,2579.3,2579.2,1.4159]
[1727293278811,0.3808,2579.3,2579.2,1.4159]
[1727293279306,0.3808,2579.3,2579.2,0.3819]
[1727293280213,3.40771,2579.4,2579.2,0.3819]
[1727293281310,3.02,2579.4,2579.2,0.3819]
[1727293283120,3.4077,2579.4,2579.2,0.3819]
[1727293283619,3.02,2579.4,2579.2,0.3819]
[1727293283815,3.2078,2579.9,2579.3,3.8768]
[1727293284011,3.2078,2579.9,2579.2,6.6097]
[1727293284206,6.2278,2579.9,2579.4,0.3877]
[1727293284412,1.33969,2579.5,2579.2,0.3819]
[1727293284614,0.3877,2579.5,2579.4,1.034]
[1727293285313,0.38771,2579.4,2579.2,0.3819]
[1727293285509,0.38769,2579.5,2579.3,1.034]
[1727293286417,0.4017,2579.6,2579.4,0.3877]
[1727293286622,0.3678,2579.7,2579.3,1.034]
[1727293286919,6.2278,2579.9,2579.5,3.2078]
[1727293287119,0.38764,2579.8,2579.6,0.3735]
[1727293287316,3.2078,2579.9,2579.8,0.38764]
[1727293287512,0.3752,2580.0,2579.8,0.38764]
[1727293287913,3.80931,2580.1,2579.9,0.38763]
[1727293288220,3.80931,2580.1,2580.0,0.3898]
[1727293288423,0.3752,2580.2,2580.1,0.3876]
[1727293288609,0.78116,2580.4,2580.2,0.38757]
[1727293288923,0.3752,2580.5,2580.1,0.3885]
[1727293289224,3.6014,2580.6,2580.2,0.3809]
[1727293289417,0.3936,2580.6,2580.4,0.38755]
[1727293289620,0.3936,2580.6,2580.5,0.38754]
[1727293290321,0.3875,2580.8,2580.5,4.9092]
[1727293290516,0.38751,2580.7,2580.5,1.42153]
[1727293290822,3.4075,2580.8,2580.5,1.42153]
[1727293291013,0.38751,2580.7,2580.5,1.42153]
[1727293291523,0.38752,2580.6,2580.4,0.38754]
[1727293291719,3.02,2580.5,2580.4,1.032]
[1727293293122,3.40754,2580.5,2580.4,1.032]
[1727293293423,3.02,2580.5,2580.4,1.032]
[1727293293618,3.40754,2580.5,2580.4,1.032]
[1727293294317,3.02,2580.5,2580.4,1.41955]
[1727293295215,3.40754,2580.5,2580.4,1.032]
[1727293295410,3.02,2580.5,2580.4,1.41955]
[1727293298124,3.40754,2580.5,2580.4,1.41955]
[1727293298632,3.02,2580.5,2580.4,1.41955]
[1727293300225,3.40754,2580.5,2580.4,1.032]
[1727293301025,3.40754,2580.5,2580.0,1.4218]
[1727293301026,0.3876,2580.1,2580.0,1.4218]
[1727293301223,3.4076,2580.1,2580.0,1.4218]
[1727293301421,3.4076,2580.1,2580.0,5.2978]
[1727293301628,3.4076,2580.1,2580.0,5.68541]
[1727293301629,3.02,2580.1,2580.0,5.68541]
[1727293301831,3.02,2580.1,2580.0,1.80941]
[1727293302019,0.7633,2580.4,2580.0,1.4218]
[1727293302324,1.15086,2580.4,2580.3,0.38757]
[1727293302524,0.3782,2580.4,2580.3,0.38757]
[1727293303024,0.3782,2580.4,2580.3,0.75797]
[1727293303332,0.3837,2580.7,2580.5,0.38754]
[1727293303333,0.38753,2580.6,2580.5,0.38754]
[1727293303527,0.38754,2580.5,2580.4,0.38755]
[1727293303830,0.38753,2580.6,2580.5,0.38754]
[1727293304018,4.16102,2580.7,2580.5,0.38754]
[1727293304830,4.16102,2580.7,2580.3,0.7479]
[1727293304831,4.16102,2580.7,2580.6,0.38752]
[1727293305331,3.77732,2580.7,2580.6,0.38752]
[1727293305824,3.77732,2580.7,2580.5,0.38753]
[1727293306129,3.2078,2580.9,2580.8,0.38749]
[1727293306427,3.2078,2580.9,2580.5,3.2078]
[1727293306428,3.2078,2580.9,2580.7,0.38749]
[1727293306730,3.2078,2580.9,2580.5,1.41953]
[1727293306731,0.38752,2580.6,2580.5,1.41953]
[1727293307031,0.38752,2580.6,2580.5,1.032]
[1727293307521,0.38752,2580.6,2580.5,1.41954]
[1727293308427,3.7811,2580.8,2580.5,1.032]
[1727293308633,0.38751,2580.7,2580.5,1.41952]
[1727293308824,0.38752,2580.6,2580.5,1.41952]
[1727293310327,3.7811,2580.8,2580.5,1.032]
[1727293310328,0.38752,2580.7,2580.5,1.032]
[1727293310526,0.38752,2580.6,2580.5,1.41952]
[1727293311734,0.38752,2580.6,2580.5,0.38752]
[1727293312632,0.38753,2580.6,2580.5,0.38753]
[1727293313340,0.38754,2580.5,2580.4,1.82704]
[1727293313540,0.38752,2580.6,2580.5,0.38752]
[1727293314435,0.368,2580.8,2580.4,1.4395]
[1727293314638,0.7555,2580.8,2580.7,0.38751]
[1727293317932,0.38752,2580.7,2580.6,0.38752]
[1727293318833,3.591,2581.0,2580.5,0.96885]
[1727293319033,3.97847,2581.0,2580.9,0.38748]
[1727293319247,3.591,2581.0,2580.9,0.38748]
[1727293319432,0.3736,2581.2,2581.1,0.38745]
[1727293319634,3.5775,2581.3,2581.2,0.38743]
[1727293319635,0.38742,2581.3,2581.2,0.38743]
[1727293319834,0.38739,2581.5,2581.3,0.3874]
[1727293320039,0.38742,2581.3,2581.0,4.2398]
[1727293320437,0.38742,2581.3,2581.1,0.38745]
[1727293320634,0.38742,2581.3,2581.2,0.38743]
[1727293320833,0.38742,2581.3,2581.1,0.38744]
[1727293321242,0.79371,2581.4,2581.2,0.38743]
[1727293321648,0.38742,2581.3,2581.2,0.38743]
[1727293321943,3.02,2581.3,2581.0,1.031]
[1727293322148,0.3895,2581.2,2581.0,1.031]
[1727293322440,0.38745,2581.1,2581.0,1.031]
[1727293322649,1.16954,2581.2,2581.0,1.41846]
[1727293324141,1.16954,2581.2,2581.0,0.38746]
[1727293324442,0.38745,2581.1,2581.0,1.41846]
[1727293325345,0.77694,2581.2,2581.0,1.41846]
[1727293326044,0.38745,2581.1,2581.0,1.41846]
[1727293326838,0.77694,2581.2,2581.0,1.41846]
[1727293327146,0.38745,2581.1,2581.0,1.41846]
[1727293327354,6.2278,2581.1,2580.7,1.031]
[1727293327643,3.02,2580.8,2580.7,1.4185]
[1727293327843,0.38748,2580.9,2580.8,0.38749]
[1727293328239,0.38748,2580.9,2580.8,0.76039]
[1727293328637,4.18717,2581.0,2580.8,0.76039]
[1727293328837,0.38748,2580.9,2580.8,0.3729]
[1727293329033,3.7997,2581.0,2580.8,0.3729]
[1727293329247,0.38748,2580.9,2580.8,0.76038]
[1727293330041,0.38748,2580.9,2580.8,0.3729]
[1727293331044,0.38754,2580.5,2580.4,3.2078]
[1727293331255,3.02,2580.5,2580.4,3.2078]
[1727293331549,0.38753,2580.6,2580.5,0.38754]
[1727293332141,0.38753,2580.6,2580.4,3.59534]
[1727293332939,0.38754,2580.5,2580.4,3.59534]
[1727293333648,0.77553,2580.6,2580.5,0.38754]
[1727293335143,3.2078,2580.8,2580.5,3.8752]
[1727293335337,0.7535,2581.0,2580.7,0.3875]
[1727293335543,0.38748,2580.9,2580.8,0.38749]
[1727293337250,0.7535,2581.0,2580.7,0.3875]
[1727293337449,3.02,2580.9,2580.6,1.14861]
[1727293337647,3.02,2580.7,2580.6,0.77351]
[1727293337851,3.40749,2580.9,2580.7,0.3875]
[1727293339446,3.02,2580.9,2580.8,0.38749]
[1727293339746,0.38748,2580.9,2580.8,0.38749]
[1727293339946,0.38749,2580.8,2580.7,0.3875]
[1727293340457,3.40749,2580.9,2580.7,0.3875]
[1727293341247,3.40749,2580.9,2579.9,0.29852292]
[1727293341248,10.23499836,2580.8,2579.9,0.29852292]
[1727293341448,0.38763,2579.9,2579.3,0.09]
[1727293341768,6.2278,2579.4,2579.2,0.4077]
[1727293341949,0.38772,2579.3,2579.2,0.4077]
[1727293342350,6.2278,2579.4,2578.9,3.2078]
[1727293342548,0.38772,2579.3,2579.0,0.38776]
[1727293343156,0.38774,2579.2,2578.9,3.2078]
[1727293343861,0.38774,2579.2,2578.9,3.59557]
[1727293344057,6.2278,2579.4,2578.9,3.59557]
[1727293344557,0.38772,2579.3,2579.0,0.38776]
[1727293345458,3.02,2579.5,2579.1,0.38774]
[1727293345656,3.02,2579.5,2579.2,0.3737]
[1727293345854,3.02,2579.5,2579.3,0.408]
[1727293346055,3.40769,2579.5,2579.3,0.408]
[1727293348059,3.02,2579.5,2579.3,0.408]
[1727293348459,3.40769,2579.5,2579.3,0.408]
[1727293350970,3.40769,2579.5,2579.3,0.79572]
[1727293351163,3.02,2579.5,2579.4,0.3877]
[1727293352161,3.02,2579.5,2579.3,0.79571]
[1727293352357,3.40769,2579.5,2579.3,0.408]
[1727293352560,3.40769,2579.5,2579.3,0.79572]
[1727293352873,3.40769,2579.5,2579.4,0.3877]
[1727293352874,3.02,2579.5,2579.4,0.3877]
[1727293354475,3.02,2579.5,2579.3,0.7957]
[1727293355174,3.4077,2579.5,2579.3,0.7957]
[1727293356065,3.02,2579.5,2579.4,0.3877]
[1727293356259,3.40769,2579.5,2579.3,0.7957]
[1727293357671,3.40769,2579.5,2579.4,0.3877]
[1727293358173,3.4077,2579.5,2579.3,0.79571]
[1727293358374,3.02,2579.4,2579.3,0.79571]
[1727293358967,3.4077,2579.4,2579.3,0.79571]
[1727293359472,3.4077,2579.4,2579.3,0.408]
[1727293362873,3.4077,2579.4,2579.3,0.79572]
[1727293363068,3.4077,2579.4,2579.3,0.408]
[1727293363476,6.6155,2579.4,2579.3,0.408]
[1727293363677,10.1046,2579.4,2578.9,3.2078]
[1727293363873,3.40776,2579.0,2578.9,0.76207]
[1727293364085,3.40776,2579.0,2578.9,0.3743]
[1727293364374,3.81586,2579.0,2578.9,0.3743]
[1727293366366,3.81586,2579.0,2578.4,0.38784]
[1727293366367,8.27512,2579.0,2578.4,0.38784]
[1727293366664,3.02,2578.7,2578.4,0.3694]
[1727293366863,3.2078,2578.8,2578.7,0.38781]
[1727293367470,3.02,2579.0,2578.9,0.38778]
[1727293369385,3.02,2579.2,2578.8,0.7679]
[1727293369569,3.02,2579.2,2579.1,0.38775]
[1727293371181,3.02,2579.2,2578.8,0.7679]
[1727293371570,3.02,2579.2,2579.1,0.38775]
[1727293376373,3.40773,2579.2,2579.0,0.38775]
[1727293376684,3.40773,2579.2,2579.1,0.38775]
[1727293376685,3.02,2579.2,2579.1,0.38775]
[1727293377075,3.40774,2579.2,2579.0,0.38776]
[1727293377283,3.5916,2579.3,2579.0,0.38776]
[1727293377284,3.02,2579.1,2579.0,0.38776]
[1727293380280,3.40775,2579.1,2579.0,0.38776]
[1727293380489,3.02,2579.1,2579.0,0.38776]
[1727293381277,3.40775,2579.1,2579.0,0.38776]
[1727293381484,3.02,2579.1,2579.0,0.38776]
[1727293382377,3.40775,2579.1,2579.0,0.38776]
[1727293382884,3.02,2579.1,2579.0,0.38776]
[1727293384984,3.02,2579.1,2578.9,3.2078]
[1727293385182,3.02,2579.1,2579.0,0.38776]
[1727293385383,0.38774,2579.2,2579.0,0.38776]
[1727293385583,3.40774,2579.2,2579.0,0.38776]
[1727293386291,0.38775,2579.1,2578.9,3.59557]
[1727293386479,3.40774,2579.2,2578.9,3.59557]
[1727293386682,3.40774,2579.2,2579.0,0.38776]
[1727293387382,3.40774,2579.2,2578.9,3.59557]
[1727293387383,0.38775,2579.1,2578.9,3.59557]
[1727293388079,0.38775,2579.1,2578.9,0.38777]
[1727293388287,3.02,2579.2,2578.9,0.38778]
[1727293388288,3.40774,2579.2,2578.9,0.38778]
[1727293389183,0.38776,2579.1,2578.9,0.38778]
[1727293389395,0.38778,2578.9,2578.8,0.7679]
[1727293389993,0.38778,2578.9,2578.8,4.6455]
[1727293390893,0.38778,2578.9,2578.8,0.3694]
[1727293392580,0.38774,2579.2,2578.8,4.247]